Cogmind - Beta 9.1 @@@ ROGUE MODE // 2019.11.06 @ 11:36:55 Player: Pimski Result: Self-destructed Performance ------------- Evolutions (0) 0 Regions Visited (4) 800 Robots Destroyed (43) 215 Value Destroyed (956) 956 Prototype IDs (22) 440 Alien Tech Used (0) 0 Bonus (325) 325 TOTAL SCORE: 2736 Bonus ------- Follower Combat Kills 25 Aligned with FarCom 300 Cogmind --------- Core Integrity 124/250 Matter 300/300 Energy 125/125 System Corruption 0% Temperature Cool (0) Location -9/Mines Parts ------- Power (1) Light Ion Engine Propulsion (2) Light Treads Light Treads Utility (2) High-capacity Storage Unit High-capacity Storage Unit Weapon (2) Light Assault Rifle Light Assault Rifle Inventory (20) Light Nuclear Core Light Angular Momentum Engine Light Treads Compact Wheel Medium Storage Unit Large Storage Unit Large Storage Unit Light Armor Plating Light Armor Plating Hacking Suite Chronowheel Particle Gun AWS/Thermal Guided Plasma Cannon Light Assault Rifle Light Assault Rifle Light Assault Rifle Grenade Launcher Grenade Launcher Peak State ------------ Power Light Ion Engine Propulsion Light Treads Light Treads Utility High-capacity Storage Unit High-capacity Storage Unit Weapon Medium Laser Light Assault Rifle Inventory Light Nuclear Core Light Angular Momentum Engine Light Treads Light Treads Compact Wheel Medium Storage Unit Large Storage Unit Large Storage Unit Core Shielding Light Armor Plating Light Armor Plating Hacking Suite Chronowheel Medium Laser Particle Gun AWS/Thermal Guided Plasma Cannon Grenade Launcher Grenade Launcher [Rating: 13] Favorites ----------- Power Light Ion Engine Engine Light Ion Engine Power Core Light Nuclear Core Propulsion Light Treads Treads Light Treads Leg Aluminum Leg Wheel Compact Wheel Utility Large Storage Unit Storage Large Storage Unit Weapon Light Assault Rifle Energy Gun Medium Laser Ballistic Gun Light Assault Rifle Launcher Grenade Launcher Build | -11 -10 -10 -10 -9 ------- Run | Scr Mat Min Exi Min Slots Evolved . | . . . . . Power . | . . . . . Propulsion . | . . . . . Utility . | . . . . . Weapon . | . . . . . Parts Attached 22 | . 9 5 3 5 Power 4 | . 1 2 . 1 Engine 3 | . 1 1 . 1 Core 1 | . . 1 . . Reactor . | . . . . . Propulsion 7 | . 2 2 1 2 Treads 6 | . 2 2 . 2 Leg . | . . . . . Wheel 1 | . . . 1 . Hover . | . . . . . Flight . | . . . . . Utility 4 | . 2 . 2 . Device . | . . . . . Storage 4 | . 2 . 2 . Processor . | . . . . . Hackware . | . . . . . Protection . | . . . . . Artifact . | . . . . . Weapon 7 | . 4 1 . 2 Energy Gun 3 | . 3 . . . Energy Cannon . | . . . . . Ballistic Gun 3 | . 1 1 . 1 Ballistic Cannon . | . . . . . Launcher 1 | . . . . 1 Special Weapon . | . . . . . Impact Weapon . | . . . . . Slashing Weapon . | . . . . . Piercing Weapon . | . . . . . Special Melee Weapon . | . . . . . Unidentified Prototypes . | . . . . . Parts Lost 11 | . 5 3 1 2 Power 3 | . 1 1 . 1 Propulsion 2 | . . 1 . 1 Utility . | . . . . . Weapon 6 | . 4 1 1 . Highest Loss Streak 2 | . 2 2 1 2 Average Slot Usage (%) 98 | . 97 99 100 91 Engine 8 | . 12 4 14 7 Core 4 | . . 9 . . Treads 24 | . 15 28 26 21 Leg 3 | . 12 . . . Storage 27 | . 27 28 28 28 Energy Gun 13 | . 13 14 14 . Ballistic Gun 14 | . 14 14 14 27 Naked Turns . | . . . . . Heaviest Build 70 | 9 40 40 70 69 Greatest Support 40 | 20 40 40 40 40 Greatest Overweight (x) 4 | . 1 . 4 3 Average Overweight (x) . | . . . 1 1 Largest Inventory Capacity 20 | 6 16 16 20 20 Average Capacity 16 | 6 14 16 18 20 Most Carried 20 | 6 16 16 20 20 Average Carried 15 | 6 12 15 18 19 Final Capacity 20 | 6 16 16 20 20 Final Carried 20 | 6 16 16 20 20 Class Distribution -------------------- 64% | Mutant 18% | Hauler-Mutant 16% | Scavenger-Mutant Dominant Class ---------------- Mutant | -10/Materials Mutant | -10/Mines Hauler-Mutant | -10/Exiles Scavenger-Mutant | -9/Mines Resources | -11 -10 -10 -10 -9 ----------- Run | Scr Mat Min Exi Min Matter Collected 554 | 206 130 97 40 81 Remotely . | . . . . . Salvage Created 1350 | 89 684 498 . 79 Parts 80 | 2 41 23 . 14 Haulers Intercepted 2 | . 2 . . . Recyclers Shooed 5 | . 2 2 . 1 Parts Field Recycled . | . . . . . Retrieved Matter . | . . . . . Parts Self-Destructed . | . . . . . Prevented . | . . . . . Kills | -11 -10 -10 -10 -9 ------- Run | Scr Mat Min Exi Min Combat Hostiles Destroyed 32 | . 11 14 . 7 Guns 29 | . 11 14 . 4 AOE 3 | . . . . 3 Classes Destroyed 11 | 1 6 4 . . Worker 3 | . 2 1 . . Builder 1 | . . 1 . . Tunneler 1 | . 1 . . . Hauler 2 | . 2 . . . Recycler 2 | 1 1 . . . Operator 1 | . 1 . . . Watcher 1 | . 1 . . . Swarmer 9 | . . 2 . 7 Grunt 18 | . 11 7 . . Sentry 2 | . . 2 . . Assembled 3 | . . 3 . . Best Kill Streak 5 | 1 4 5 . 4 Combat Bots Only 4 | . 4 2 . 4 Max Kills in Single Turn 2 | 1 1 1 . 2 Gunslinging . | . . . . . Exploded 2 | . . . . 2 Melee . | . . . . . Uniques/NPCs Destroyed . | . . . . . Combat | -11 -10 -10 -10 -9 -------- Run | Scr Mat Min Exi Min Damage Taken 1242 | . 502 402 189 149 Core 126 | . 48 28 12 38 Absorbed by Shields . | . . . . . Core Remaining (%) 100 | 100 . . . . Volleys Fired 139 | 6 64 51 1 17 Largest 2 | 2 2 2 1 1 Hottest 70 | 60 70 70 20 30 Shots Fired 257 | 12 125 102 1 17 Gun 255 | 12 125 102 1 15 Cannon . | . . . . . Launcher 2 | . . . . 2 Special . | . . . . . Kinetic 137 | 6 64 51 1 15 Thermal 118 | 6 61 51 . . Explosive 2 | . . . . 2 Electromagnetic . | . . . . . Robot Hit Streak 14 | 3 14 10 . 5 Robot Miss Streak 3 | 1 3 3 1 1 Penetration Max . | . . . . . Secondary Targets . | . . . . . Shots Hit Robots 179 | 8 91 69 . 11 Core Hits 86 | 2 41 35 . 8 Critical Hits 4 | 1 1 2 . . Critical Kills 4 | 1 1 2 . . Critical Parts Destroyed . | . . . . . Melee Attacks . | . . . . . Impact . | . . . . . Slashing . | . . . . . Piercing . | . . . . . Sneak Attacks . | . . . . . Combat Hostiles . | . . . . . Follow-up Attacks . | . . . . . Damage Inflicted 2114 | 67 935 821 . 291 Guns 1872 | 67 921 776 . 108 Cannons . | . . . . . Explosions 183 | . . . . 183 Melee . | . . . . . Ramming 59 | . 14 45 . . Kinetic 758 | 33 353 264 . 108 Thermal 1114 | 34 568 512 . . Explosive 183 | . . . . 183 Electromagnetic . | . . . . . Impact . | . . . . . Slashing . | . . . . . Piercing . | . . . . . Highest Corruption . | . . . . . Average Corruption . | . . . . . Corruption Purged . | . . . . . Overload Shots . | . . . . . Overflow Damage 6 | . . . . 6 Projectiles . | . . . . . Explosions 6 | . . . . 6 Melee . | . . . . . Knockbacks . | . . . . . Impact . | . . . . . Kinetic . | . . . . . Secondary . | . . . . . Self-Inflicted Damage 24 | . . . . 24 Shots 1 | . . . . 1 Rammed 10 | . 2 8 . . Targets Rammed 11 | . 2 9 . . Kicked . | . . . . . Crushed 1 | . . 1 . . Highest Temperature 212 | 40 117 212 . . Average Temperature 56 | 17 34 77 . . Received Heat Transfer 502 | . 285 217 . . Siege Activations . | . . . . . Robots Corrupted . | . . . . . Combat Hostiles . | . . . . . Parts Fried . | . . . . . Impact Corruptions . | . . . . . Robots Melted . | . . . . . Combat Hostiles . | . . . . . Parts Melted 6 | . 3 3 . . Heat Transferred 2879 | 75 1287 1517 . . Parts Sabotaged . | . . . . . Parts Stolen . | . . . . . Parts Stripped . | . . . . . Power Chain Reactions . | . . . . . Missiles Intercepted . | . . . . . Alert | -11 -10 -10 -10 -9 ------- Run | Scr Mat Min Exi Min Peak Influence 176 | 5 176 135 . 155 Average Influence 59 | 2 78 41 . 125 Maximum Alert Level . | . . . . . Low Security (%) 100 | . . . . . Level 1 . | . . . . . Level 2 . | . . . . . Level 3 . | . . . . . Level 4 . | . . . . . Level 5 . | . . . . . High Security . | . . . . . Max Security . | . . . . . Squads Dispatched 3 | . 3 . . . Investigation 2 | . 2 . . . Extermination . | . . . . . Reinforcement 1 | . 1 . . . Assault . | . . . . . Garrison . | . . . . . Intercept . | . . . . . Construction Impeded . | . . . . . Haulers Reinforced . | . . . . . Stealth | -11 -10 -10 -10 -9 --------- Run | Scr Mat Min Exi Min Distress Signals 3 | . 2 . . 1 Communications Jammed . | . . . . . Distress Signals . | . . . . . Times Spotted 54 | . 21 19 5 9 Peak Tracking Total 11 | . 5 4 11 3 Tactical Retreats 3 | . 1 . 2 . Traps | -11 -10 -10 -10 -9 ------- Run | Scr Mat Min Exi Min Traps Triggered 2 | . 2 . . . Indirectly . | . . . . . Trap Hack Attempts . | . . . . . Triggered . | . . . . . Disarmed . | . . . . . Reprogrammed . | . . . . . Reused . | . . . . . Traps Extracted . | . . . . . Installed . | . . . . . Triggered . | . . . . . Machines | -11 -10 -10 -10 -9 ---------- Run | Scr Mat Min Exi Min Machines Disabled 1 | . . . . 1 Max in Single Turn 1 | . . . . 1 Machines Sabotaged . | . . . . . Garrisons Compromised . | . . . . . Overloaded Fab Kills . | . . . . . Fab Network Shutdowns . | . . . . . Hacking | -11 -10 -10 -10 -9 --------- Run | Scr Mat Min Exi Min Machines Accessed 5 | . 3 . 2 . Terminals 3 | . 3 . . . Fabricators . | . . . . . Repair Stations . | . . . . . Recycling Units . | . . . . . Scanalyzers . | . . . . . Garrison Access . | . . . . . Total Hacks 10 | . 8 . 2 . Successful 4 | . 2 . 2 . Failed 6 | . 6 . . . Catastrophic . | . . . . . Database Lockouts . | . . . . . Manual 4 | . 3 . 1 . Terminals 8 | . 8 . . . Fabricators . | . . . . . Repair Stations . | . . . . . Recycling Units . | . . . . . Scanalyzers . | . . . . . Garrison Access . | . . . . . Terminal Hacks 3 | . 1 . 2 . Record 1 | . . . 1 . Branch Access Points 1 | . 1 . . . EX-Prototype ID Bank 1 | . . . 1 . Fabricator Hacks . | . . . . . Repair Station Hacks . | . . . . . Recycling Unit Hacks . | . . . . . Scanalyzer . | . . . . . Garrison Access Hacks . | . . . . . Unauthorized Hacks 2 | . 2 . . . Terminals 1 | . 1 . . . Botnet 1 | . 1 . . . Fabricators . | . . . . . Repair Stations . | . . . . . Recycling Units . | . . . . . Scanalyzers . | . . . . . Garrison Access . | . . . . . Data Cores Recovered . | . . . . . Used . | . . . . . Hacking Detections 3 | . 3 . . . Full Trace Events . | . . . . . Feedback Events . | . . . . . Feedback Blocked . | . . . . . Robot Schematics Acquired . | . . . . . Robots Built . | . . . . . Matter . | . . . . . Time . | . . . . . Total Robot Build Rating . | . . . . . Part Schematics Acquired . | . . . . . Parts Built . | . . . . . Matter . | . . . . . Time . | . . . . . Total Part Build Rating . | . . . . . Parts Repaired . | . . . . . Time . | . . . . . Parts Recycled . | . . . . . Recycled Matter . | . . . . . Retrieved Matter . | . . . . . Retrieved Components . | . . . . . Parts Scanalyzed . | . . . . . Part Schematics Acquired . | . . . . . Parts Damaged . | . . . . . Bothacking | -11 -10 -10 -10 -9 ------------ Run | Scr Mat Min Exi Min Used RIF Installer . | . . . . . Robots Hacked . | . . . . . Non-combat . | . . . . . Combat . | . . . . . Robot Hacks Applied . | . . . . . Relay Couplers Released . | . . . . . Robots Rewired . | . . . . . Allies Hacked . | . . . . . Hacks Repelled . | . . . . . Allies | -11 -10 -10 -10 -9 -------- Run | Scr Mat Min Exi Min Total Allies 4 | . . 4 . . Largest Group 3 | . . 3 3 . Highest-Rated Group 40 | . . 40 39 . Highest-Rated Ally 31 | . . 31 16 . Total Orders 2 | . . . 2 . GOTO 2 | . . . 2 . Ally Attacks 40 | . . 30 10 . Total Damage 436 | . . 341 95 . Kills 7 | . . 6 1 . Allies Corrupted . | . . . . . Allies Melted . | . . . . . Intel | -11 -10 -10 -10 -9 ------- Run | Scr Mat Min Exi Min Robot Analysis Total . | . . . . . Derelict Logs Recovered 1 | . . 1 . . Drone Launches . | . . . . . Drone Recoveries . | . . . . . Exploration | -11 -10 -10 -10 -9 ------------- Run | Scr Mat Min Exi Min Turns Passed 3252 | 34 838 1387 833 160 Spaces Moved 1588 | 15 364 679 470 60 Core . | . . . . . Treads 1329 | . 157 679 433 60 Legs 222 | 15 207 . . . Wheels 37 | . . . 37 . Hover . | . . . . . Flight . | . . . . . Fastest Speed 120 | 120 120 160 140 180 Average Speed 162 | 120 151 160 172 190 Slowest Speed 220 | 120 160 160 180 220 Overloaded Moves . | . . . . . Propulsion Burnouts . | . . . . . Robots Hopped . | . . . . . Cave-ins Triggered . | . . . . . Exploration Rate (%) 50 | 3 61 98 70 21 Regions Visited 4 Branch Regions 3 Pre-discovered Areas 1 | . . . 1 . Known Exits Taken 1 | . 1 . . . Unknown Exits Taken 3 | 1 . 1 1 . Scrap Searched 1 | . . 1 . . Spaces Dug 14 | . . . . 14 Terrain Destroyed 14 | . . . . 14 Melee . | . . . . . Projectile . | . . . . . AOE 14 | . . . . 14 Actions | -11 -10 -10 -10 -9 --------- Run | Scr Mat Min Exi Min Total 2030 | 20 540 885 494 91 Wait 200 | . 69 128 . 3 Move 1584 | 14 363 678 469 60 Hop . | . . . . . Pick Up 45 | . 24 7 11 3 Fast Attach 5 | . 1 2 . 2 Attach 9 | . 5 2 . 2 Detach 1 | . . . . 1 Swap 8 | . 3 1 3 1 Drop 28 | . 9 7 10 2 Fire 139 | 6 64 51 1 17 Melee . | . . . . . Ram . | . . . . . Kick . | . . . . . Crush 11 | . 2 9 . . Escape Stasis . | . . . . . Rewire . | . . . . . Trap . | . . . . . Miscellaneous . | . . . . . Route ------- -11/Scrapyard -10/Materials (discovered 2 exits: [*Mat] / *Min) -10/Mines (discovered 3 exits: [*Mat x2] / *Exi) -10/Exiles -9/Mines (discovered 1 exit: [*Mat]) History --------- Turn | Location | Event 18 | -11/Scrapyard | Discovered new exit (range 3) 35 | -11/Scrapyard | Entered Materials 222 | -10/Materials | Discovered new exit (range 5) 304 | -10/Materials | Build established: Mutant 834 | -10/Materials | Identified exit to Mines 873 | -10/Materials | Entered Mines 894 | -10/Mines | Met a Derelict bent on vengeance 984 | -10/Mines | Deemed a non-threat by the Exiles lab entrance 984 | -10/Mines | Discovered new exit (range 5) 1015 | -10/Mines | Received a Mining Laser from a helpful Derelict 1222 | -10/Mines | Discovered new exit (range 5) 1534 | -10/Mines | Discovered new exit (range 8) 1569 | -10/Mines | Learned location of 1 exit from Materials 1626 | -10/Mines | Assembled infested the area 2052 | -10/Mines | Assisted by bots powering up and referring to "LRC-V3" 2260 | -10/Mines | Entered Exiles 2260 | -10/Exiles | Accompanied by 3 allies 2299 | -10/Exiles | Met 8R-AWN 2364 | -10/Exiles | Met EX-HEX 2395 | -10/Exiles | Build established: Scavenger-Mutant 2458 | -10/Exiles | Met EX-DEC 2489 | -10/Exiles | Learned location of Zion (-6) 2754 | -10/Exiles | Met EX-BIN 2776 | -10/Exiles | Aligned with FarCom system 2778 | -10/Exiles | Given EX-Vault access code 2821 | -10/Exiles | Opened EX-Vault 2830 | -10/Exiles | Found Gui. Plasma Cannon 2835 | -10/Exiles | Found Chronowheel 2840 | -10/Exiles | Found AWS/Thermal 2864 | -10/Exiles | Build established: Hauler-Mutant 2882 | -10/Exiles | Warned to stay clear of 0b10 Research branches 3044 | -10/Exiles | Attacked by the Exiles 3081 | -10/Exiles | Discovered new exit (range 10) 3093 | -10/Exiles | Stole three prototypes: Chronowheel, AWS/Thermal, Gui. Plasma Cannon 3093 | -10/Exiles | Entered Mines 3163 | -9/Mines | Core integrity fell below 50% 3223 | -9/Mines | Discovered new exit (range 13) 3253 | -9/Mines | Self-destructed Last Messages --------------- 03096_ S-10 Pest destroyed. 03103_ Acquired 3 matter. 03108_ Acquired Lgt. Assault Rifle. 03109_ Acquired 38 matter. 03123_ The unstable cave ceiling collapses. 03139_ R-06 Scavenger sends out distress signal. 03141_ S-10 Pest destroyed. 03156_ Lgt. Treads destroyed. 03164_ S-10 Pest destroyed. 03173_ Acquired Lgt. Assault Rifle. 03179_ Acquired Lgt. Ion Engine. 03180_ Acquired 20 matter. 03184_ Dropped Sml. Laser. 03185_ Acquired Lgt. Assault Rifle. 03186_ Acquired 18 matter. 03189_ Dropped Med. Laser. 03190_ Acquired Lgt. Assault Rifle. 03191_ Acquired 2 matter. 03223_ EXIT=FOUND 03252_ C-30 ARC bursts open, deploying its payload. Map ----- +----------------------------------------------------+ | ????????# =#????####?????????????? | | ????????# #?????????????????????? | | ????????# #?????????????????????? | | ????????## #####?????????????????????? | | ?????????# #?????????????????????????? | | ?????????# #?????????????????????????? | | ?????????# #?????????????????????????? | | ??????##?# #?????????????????????????? | | ?????## ## #?????????????????????????? | | ?????# # #?????????????????????????? | | ??????# ##????????????????????????? | | ??????## #????????????????????????? | | ???????## #????????????????????????? | | ????????# ##????????????????????????? | | ????????# #?????????????????????????? | | ????????# #?????????????????????????? | | ????????## #?????????????????????????? | | ????????## ##???####?????????????????? | | ????##### #??## ##????????????" ??? | | ??### #### #??????????? ???? | | t #??????????%?????? | | ##??????? ??????? | | ### ### ##?????s#???????? | | ???## #?# #####s #???????? | | ?????## #?## #???????? | | ???????## ##??## < @ #???????? | | ?????????###????### #########???????? | | ???????????????????####???????????????? | | ??????????????????????????????????????? | | ??????????????????????????????????????? | | ??????????????????????????????????????? | | ??????????????????????????????????????? | | ??????????????????????????????????????? | | ??????????????????????????????????????? | | ??????????????????????????????????????? | | ??????????????????????????????????????? | | ??????????????????????????????????????? | | ??????????????????????????????????????? | | ??????????????????????????????????????? | | ??????????????????????????????????????? | | ??????????????????????????????????????? | | ??????????????????????????????????????? | | ??????????????????????????????????????? | | ??????????????????????????????????????? | | ??????????????????????????????????????? | | ??????????????????????????????????????? | | ??????????????????????????????????????? | | ??????????????????????????????????????? | | ??????????????????????????????????????? | | ??????????????????????????????????????? | +----------------------------------------------------+ Best States ------------- Heat Dissipation 25 Energy Generation 14 Energy Capacity 250 Matter Stores 300 Matter Capacity 300 Sight Range 16 Terrain Scan Density 10 Evasion (%) 40 Recoil Reduction 2 Item Schematics ----------------- None Robot Schematics ------------------ None Fabricated ------------ Nothing Alien Tech Used ----------------- None Achievements -------------- None Challenges ------------ None Game ------ Seed WavePropulsionProtection Manual? 0 Play Time 00:21:19 Cumulative 596.0 hours Start 2019.11.06 @ 11:16:37 End 2019.11.06 @ 11:36:55 Sessions 1 Manual Loads 0 Difficulty Rogue Special Mode None Game No. 378 Rogue 378 Adventurer 0 Explorer 0 Win Type - Total 99 Types 66/6/7/10/5/1/4 Lore% 96 Gallery% 94 Achievement% 80 Wizard Run 0 Options --------- ASCII 0 Keyboard 0 Movement Numpad Keybinds 0 Fullscreen 2 Font 18/SmallcapsGlow Map View 76x50 Tactical HUD 1 Map Filters NONE Filters NONE Steam 1 RUN: 65bb5441-ec60-4900-83cb-1c5f6017bf06